fUSD/lending_fUSD_20240502
["ID","MTS","AMOUNT","RATE_DAILY","PERIOD"]
[325300095,1714686034458,-5661.5,0.0004698,117]
[325300096,1714686034480,-405.0,0.00046986,120]
[325300097,1714686034504,-1000.0,0.00046999,120]
[325300098,1714686034529,-100000.0,0.00047,47]
[325300099,1714686034552,-2476.54200545,0.00047,120]
[325300100,1714686034576,-200.0,0.00047,108]
[325300101,1714686034599,-1000.0,0.00047,120]
[325300102,1714686034626,-713.643,0.00047,120]
[325300103,1714686034650,-1800.0,0.00047,90]
[325300104,1714686034675,-750.0,0.00047,120]
[325300105,1714686034700,-2000.0,0.00047,30]
[325300106,1714686034723,-3128.02237588,0.00047,60]
[325300107,1714686034747,-2500.0,0.00047,120]
[325300108,1714686034771,-5000.0,0.00047,120]
[325300109,1714686034795,-50000.0,0.00047,30]
[325300110,1714686034824,-151.0,0.00047068,120]
[325300111,1714686035091,-26669.608,0.00047158,120]
[325300112,1714686035116,-26669.608,0.00047158,120]
[325300113,1714686035140,-26669.608,0.00047158,120]
[325300114,1714686035165,-26669.609,0.00047158,120]
[325300115,1714686035191,-26669.608,0.00047158,120]
[325300116,1714686035218,-240.2583932,0.000473,120]
[325300117,1714686035242,-12147.3733589,0.000473,90]
[325300118,1714686035267,-151.0,0.00047315,120]
[325300119,1714686035292,-2000.0,0.00047646,120]
[325300120,1714686035319,-1000000.0,0.000477,120]
[325300121,1714686035343,-151.0,0.00047753,120]
[325300122,1714686035366,-412.58361446,0.000478,120]
[325300123,1714686035390,-888.0,0.00047843,120]
[325300124,1714686035414,-1000.0,0.00047999,120]
[325300125,1714686035440,-100000.0,0.00048,48]
[325300126,1714686035466,-830533.1608061,0.00048,120]
[325300145,1714686449834,151.0,0.00023964,120]
[325300164,1714686632204,-324.14591879,0.00012992,2]
[325300165,1714686632214,-258.47419654,0.00012992,2]
[325300166,1714686632223,-1876.31677203,0.00012992,2]
[325300167,1714686632235,-251.61999996,0.00012992,2]
[325300168,1714686632248,-809.73333754,0.00012992,2]
[325300169,1714686632260,-317.946002,0.00012992,2]
[325300170,1714686632272,-3860.40152884,0.00012992,2]
[325300184,1714686632478,-580.86539022,0.00012992,2]
[325300187,1714686632489,-12049.8909042,0.00012992,2]
[325300190,1714686632501,-15540.73558837,0.00012992,2]
[325300193,1714686632510,-500.0,0.00012993,2]
[325300196,1714686632519,-155.0,0.00012993,2]
[325300199,1714686632528,-155.0,0.00012993,2]
[325300202,1714686632537,-3074.11489296,0.00012993,2]
[325300204,1714686632546,-3026.85532402,0.00012993,2]
[325300206,1714686632557,-593.41505923,0.00012993,2]
[325300214,1714686632624,-2243.20497711,0.00012993,2]
[325300216,1714686632634,-202.0,0.00012993,2]
[325300218,1714686632643,-155.0,0.00012994,2]
[325300220,1714686632652,-1399.79502289,0.00012994,2]
[325300223,1714686632664,-1768.9242679,0.00012994,2]
[325300224,1714686632673,-675.34281786,0.00012994,2]
[325300225,1714686632684,-4909.8383545,0.00012994,2]
[325300226,1714686632838,-2332.32978955,0.00012994,2]
[325300227,1714686632851,-713.07366266,0.00012994,2]
[325300228,1714686632864,-893.59727248,0.00012994,2]
[325300229,1714686632875,-1262.010745,0.00012994,2]
[325300254,1714686638035,-12000.35201914,0.00012994,2]
[325300256,1714686638045,-12866.40925669,0.00012996,2]
[325300258,1714686638056,-524.24934051,0.00012996,2]
[325300260,1714686638068,-19457.26488767,0.00012999,2]
[325300262,1714686638077,-997.24,0.00013,2]
[325300263,1714686638087,-997.24,0.0001438,2]
[325300264,1714686638096,-155.0,0.00015759,2]
[325300265,1714686638105,-997.24,0.0001576,2]
[325300266,1714686638115,-7291.55,0.0001576,2]
[325300267,1714686638124,-150.0,0.00016314,2]
[325300268,1714686638134,-1032.21863684,0.00016403,2]
[325300269,1714686638146,-658.31136316,0.00016403,2]
[325300270,1714686638156,-250.0,0.00016449,2]
[325300271,1714686638166,-499.99,0.00016449,2]
[325300272,1714686638176,-150.99,0.00016449,2]
[325300273,1714686638186,-150.0,0.00016645,2]
[325300274,1714686638196,-2649.4618822,0.00016647,2]
[325300275,1714686638206,-155.99071134,0.00016649,2]
[325300276,1714686638215,-150.99,0.00016649,2]
[325300277,1714686638226,-710.59605264,0.00016653,2]
[325300278,1714686638237,-150.0,0.00016658,2]
[325300279,1714686638247,-169.41378956,0.00016658,2]
[325300280,1714686638274,-148.72621044,0.00016658,2]
[325300281,1714686638285,-1876.9048268,0.00016685,2]
[325300282,1714686638294,-182.31,0.00016712,2]
[325300283,1714686638304,-177.62,0.00016896,2]
[325300284,1714686638314,-19591.67106291,0.00017,2]
[325300285,1714686638324,-1912.454622,0.0001714,2]
[325300286,1714686638333,-287.13,0.00017234,2]
[325300287,1714686638343,-287.13,0.00017282,2]
[325300288,1714686638352,-287.13,0.00017329,2]
[325300289,1714686638362,-287.13,0.00017376,2]
[325300290,1714686638372,-287.13,0.00017423,2]
[325300291,1714686638382,-450.95,0.00017429,3]
[325300292,1714686638391,-480.0,0.00017439,2]
[325300293,1714686638401,-1500.0,0.00017445,2]
[325300294,1714686638411,-287.13,0.00017471,2]
[325300295,1714686638421,-2762.92,0.00017475,2]
[325300296,1714686638431,-287.13,0.00017518,2]
[325300297,1714686638441,-5472.65,0.00017534,2]
[325300298,1714686638451,-287.13,0.00017565,2]
[325300299,1714686638460,-2000.0,0.00017582,3]
[325300300,1714686638470,-170.44,0.00017589,2]
[325300301,1714686638479,-3328.33868898,0.00017597,2]
[325300302,1714686638492,-3319.01570001,0.00017597,2]
[325300303,1714686638504,-598.15659,0.00017597,2]
[325300304,1714686638515,-838.75528515,0.00017597,2]
[325300306,1714686640485,-1492.13306541,0.00017597,2]
[325300307,1714686640498,-1460.57067045,0.00017597,2]
[325300308,1714686640507,-287.13,0.00017612,2]
[325300309,1714686640517,-287.13,0.0001766,2]
[325300310,1714686640526,-287.13,0.00017707,2]
[325300311,1714686640535,-150.36,0.00017732,2]
[325300312,1714686640544,-123.25486295,0.00017754,2]
[325300313,1714686640557,-163.87513705,0.00017754,2]
[325300314,1714686640566,-287.13,0.00017801,2]
[325300315,1714686640575,-358.44,0.00017808,2]
[325300316,1714686640585,-287.13,0.00017849,2]
[325300317,1714686640594,-1428.92930905,0.00017869,2]
[325300318,1714686640606,-423.49069095,0.00017869,2]
[325300319,1714686640616,-164.71851705,0.0001788,2]
[325300320,1714686640628,-526.7109937,0.0001788,2]
[325300321,1714686640640,-1192.11017993,0.0001788,2]
[325300322,1714686640652,-12886.5,0.0001788,2]
[325300323,1714686640663,-910.0,0.0001788,2]
[325300324,1714686640675,-11505.8443114,0.0001788,2]
[325300325,1714686640688,-20314.14546205,0.0001788,2]
[325300326,1714686640698,-287.13,0.00017896,2]
[325300327,1714686640707,-178.15,0.00017943,2]
[325300328,1714686640716,-178.15,0.00017943,2]
[325300329,1714686640726,-178.15,0.00017943,2]
[325300330,1714686640735,-287.13,0.00017943,2]
[325300331,1714686640745,-31921.66747481,0.00017953,2]
[325300332,1714686640758,-276.0,0.00017953,2]
[325300333,1714686640772,-1763.37108582,0.00017953,2]
[325300334,1714686640793,-13693.03085844,0.00017953,2]
[325300335,1714686640809,-50254.78111818,0.00017953,2]
[325300336,1714686640822,-162967.80316639,0.00017953,2]
[325300337,1714686640831,-287.13,0.0001799,2]
[325300338,1714686640840,-155.04379397,0.00018,2]
[325300339,1714686640850,-287.13,0.00018038,2]
[325300340,1714686640859,-178.15,0.00018043,2]
[325300341,1714686640870,-18272.02564708,0.00018053,2]
[325300342,1714686640882,-5617.97435292,0.00018053,2]
[325300343,1714686640892,-250.0,0.00018053,2]
[325300344,1714686640901,-1597.401,0.00018053,2]
[325300345,1714686640911,-287.13,0.00018085,2]
[325300346,1714686640920,-287.13,0.00018132,2]
[325300347,1714686640930,-210.0,0.0001831,2]
[325300348,1714686640940,-500.0,0.000185,2]
[325300349,1714686640950,-47500.02946406,0.00018916,2]
[325300350,1714686640960,-157.62684082,0.00018983,2]
[325300351,1714686640970,-150.36,0.00019102,2]
[325300352,1714686640980,-537.94873719,0.00019176,2]
[325300353,1714686640991,-526.71808343,0.00019177,2]
[325300354,1714686641002,-500.0,0.00019178,2]
[325300355,1714686641012,-500.0,0.00019178,2]
[325300356,1714686641023,-500.0,0.00019178,2]
[325300357,1714686641033,-500.0,0.00019178,2]
[325300358,1714686641042,-500.0,0.00019178,2]
[325300359,1714686641053,-500.0,0.00019178,2]
[325300360,1714686641063,-214.84388586,0.00019178,2]
[325300361,1714686641072,-500.0,0.00019178,2]
[325300362,1714686641082,-500.0,0.00019178,2]
[325300363,1714686641091,-450.54723301,0.00019178,2]
[325300364,1714686641103,-500.0,0.00019178,2]
[325300365,1714686641112,-500.0,0.00019178,2]
[325300366,1714686641122,-500.0,0.00019178,2]
[325300367,1714686641131,-500.0,0.00019178,2]
[325300369,1714686641140,-500.0,0.00019178,2]
[325300370,1714686641150,-500.0,0.00019178,2]
[325300372,1714686641159,-500.0,0.00019178,2]
[325300374,1714686641169,-500.0,0.00019178,2]
[325300376,1714686641178,-500.0,0.00019178,2]
[325300378,1714686641188,-500.0,0.00019178,2]
[325300379,1714686641198,-600.77786358,0.00019178,2]
[325300380,1714686641207,-500.0,0.00019178,2]
[325300381,1714686641216,-500.0,0.00019178,2]
[325300382,1714686641226,-477.26002948,0.00019178,2]
[325300383,1714686641235,-500.0,0.00019178,2]
[325300384,1714686641246,-500.0,0.00019178,2]
[325300385,1714686641255,-500.0,0.00019178,2]
[325300386,1714686641265,-500.0,0.00019178,2]
[325300387,1714686641274,-500.0,0.00019178,2]
[325300388,1714686641283,-500.0,0.00019178,2]
[325300389,1714686641293,-500.0,0.00019178,2]
[325300390,1714686641302,-500.0,0.00019178,2]
[325300391,1714686641311,-500.0,0.00019178,2]
[325300392,1714686641320,-500.0,0.00019178,2]
[325300393,1714686641330,-500.0,0.00019178,2]
[325300394,1714686641339,-500.0,0.00019178,2]
[325300395,1714686641348,-500.0,0.00019178,2]
[325300396,1714686641358,-500.0,0.00019178,2]
[325300397,1714686641367,-500.0,0.00019178,2]
[325300398,1714686641377,-500.0,0.00019178,2]
[325300399,1714686641386,-500.0,0.00019178,2]
[325300400,1714686641395,-500.0,0.00019178,2]
[325300401,1714686641404,-500.0,0.00019178,2]
[325300402,1714686641413,-500.0,0.00019178,2]
[325300403,1714686641422,-500.0,0.00019178,2]
[325300404,1714686641431,-500.0,0.00019178,2]
[325300405,1714686641440,-500.0,0.00019178,2]
[325300406,1714686641449,-500.0,0.00019178,2]
[325300407,1714686641458,-500.0,0.00019178,2]
[325300408,1714686641468,-500.0,0.00019178,2]
[325300409,1714686641477,-500.0,0.00019178,2]
[325300410,1714686641486,-500.0,0.00019178,2]
[325300411,1714686641496,-500.0,0.00019178,2]
[325300412,1714686641505,-500.0,0.00019178,2]
[325300413,1714686641514,-500.0,0.00019178,2]
[325300414,1714686641524,-500.0,0.00019178,2]
[325300415,1714686641534,-639.82283334,0.00019178,2]
[325300416,1714686641542,-500.0,0.00019178,2]
[325300417,1714686641552,-500.0,0.00019178,2]
[325300418,1714686641561,-639.82283334,0.00019178,2]
[325300419,1714686641571,-510.71541085,0.00019178,2]
[325300420,1714686641580,-500.0,0.00019178,2]
[325300421,1714686641590,-639.82283334,0.00019178,2]
[325300422,1714686641598,-500.0,0.00019178,2]
[325300423,1714686641608,-639.82283334,0.00019178,2]
[325300424,1714686641617,-639.82283334,0.00019178,2]
[325300425,1714686641627,-267.37961552,0.00019178,2]
[325300426,1714686641636,-639.82283334,0.00019178,2]
[325300427,1714686641645,-500.0,0.00019178,2]
[325300428,1714686641654,-639.82283334,0.00019178,2]
[325300429,1714686641663,-639.82283334,0.00019178,2]
[325300430,1714686641673,-500.0,0.00019178,2]
[325300431,1714686641682,-500.0,0.00019178,2]
[325300432,1714686641692,-639.82283334,0.00019178,2]
[325300433,1714686641701,-500.0,0.00019178,2]
[325300434,1714686641711,-639.82283334,0.00019178,2]
[325300435,1714686641721,-230.11262293,0.00019178,2]
[325300436,1714686641736,-269.88737707,0.00019178,2]
[325300437,1714686641746,-500.0,0.00019178,2]
[325300438,1714686641755,-639.82283334,0.00019178,2]
[325300439,1714686641764,-454.00420582,0.00019178,2]
[325300440,1714686641781,-45.99579418,0.00019178,2]
[325300441,1714686641790,-639.82283334,0.00019178,2]
[325300442,1714686641800,-324.95027513,0.00019178,2]
[325300443,1714686641809,-271.94287675,0.00019178,2]
[325300444,1714686641823,-228.05712325,0.00019178,2]
[325300445,1714686641832,-50.07813244,0.00019178,2]
[325300446,1714686641843,-478.61084575,0.00019178,2]
[325300447,1714686641855,-111.13385515,0.00019178,2]
[325300448,1714686641865,-500.0,0.00019178,2]
[325300449,1714686641875,-639.82283334,0.00019178,2]
[325300450,1714686641884,-500.0,0.00019178,2]
[325300451,1714686641895,-500.0,0.00019178,2]
[325300452,1714686641904,-639.82283334,0.00019178,2]
[325300453,1714686641913,-579.06386195,0.00019178,2]
[325300454,1714686641926,-60.75897139,0.00019178,2]
[325300455,1714686641935,-500.0,0.00019178,2]
[325300456,1714686641943,-500.0,0.00019178,2]
[325300457,1714686641953,-244.81273501,0.00019178,2]
[325300458,1714686641964,-395.01009833,0.00019178,2]
[325300459,1714686641974,-563.93345026,0.00019178,2]
[325300460,1714686641986,-75.88938308,0.00019178,2]
[325300461,1714686641996,-500.0,0.00019178,2]
[325300462,1714686642006,-61.15061692,0.00019178,2]
[325300463,1714686642018,-578.67221642,0.00019178,2]
[325300464,1714686642027,-639.82283334,0.00019178,2]
[325300465,1714686642037,-639.82283334,0.00019178,2]
[325300466,1714686642047,-120.58733036,0.00019178,2]
[325300467,1714686642062,-463.53115258,0.00019178,2]
[325300468,1714686642150,-55.7043504,0.00019178,2]
[325300469,1714686642160,-639.82283334,0.00019178,2]
[325300470,1714686642170,-414.78724585,0.00019178,2]
[325300471,1714686642182,-225.03558749,0.00019178,2]
[325300472,1714686642191,-639.82283334,0.00019178,2]
[325300473,1714686642201,-38.24877319,0.00019178,2]
[325300474,1714686642212,-435.67082283,0.00019178,2]
[325300475,1714686642224,-165.90323732,0.00019178,2]
[325300476,1714686642233,-238.8974,0.00019178,2]
[325300477,1714686642246,-400.92543334,0.00019178,2]
[325300478,1714686642256,-639.82283334,0.00019178,2]
[325300479,1714686642265,-7.83449632,0.00019178,2]
[325300480,1714686642278,-503.48872017,0.00019178,2]
[325300481,1714686642289,-128.49961685,0.00019178,2]
[325300482,1714686642299,-639.82283334,0.00019178,2]
[325300483,1714686642309,-639.82283334,0.00019178,2]
[325300484,1714686642320,-639.82283334,0.00019178,2]
[325300485,1714686642332,-372.18252313,0.00019178,2]
[325300486,1714686642345,-267.64031021,0.00019178,2]
[325300487,1714686642357,-639.82283334,0.00019178,2]
[325300488,1714686642366,-639.82283334,0.00019178,2]
[325300489,1714686642376,-639.82283334,0.00019178,2]
[325300490,1714686642386,-639.82283334,0.00019178,2]
[325300491,1714686642396,-639.82283334,0.00019178,2]
[325300492,1714686642405,-639.82283334,0.00019178,2]
[325300493,1714686642415,-639.82283334,0.00019178,2]
[325300494,1714686642424,-639.82283334,0.00019178,2]
[325300495,1714686642433,-639.82283334,0.00019178,2]
[325300496,1714686642442,-639.82283334,0.00019178,2]
[325300497,1714686642451,-639.82283334,0.00019178,2]
[325300498,1714686642460,-639.82283334,0.00019178,2]
[325300499,1714686642470,-639.82283334,0.00019178,2]
[325300500,1714686642480,-639.82283334,0.00019178,2]
[325300501,1714686642489,-639.82283334,0.00019178,2]
[325300502,1714686642499,-639.82283334,0.00019178,2]
[325300503,1714686642508,-639.82283334,0.00019178,2]
[325300504,1714686642517,-639.82283334,0.00019178,2]
[325300505,1714686642527,-639.82283334,0.00019178,2]
[325300506,1714686642537,-639.82283334,0.00019178,2]
[325300507,1714686642549,-639.82283334,0.00019178,2]
[325300508,1714686642558,-639.82283334,0.00019178,2]
[325300509,1714686642567,-639.82283334,0.00019178,2]
[325300510,1714686642576,-639.82283334,0.00019178,2]
[325300511,1714686642586,-639.82283334,0.00019178,2]
[325300512,1714686642595,-639.82283334,0.00019178,2]
[325300513,1714686642604,-639.82283334,0.00019178,2]
[325300514,1714686642614,-639.82283334,0.00019178,2]
[325300515,1714686642624,-4000.0,0.00019178,2]
[325300516,1714686642633,-3126.05,0.00019178,2]
[325300517,1714686642642,-3584.95643595,0.00019178,2]
[325300518,1714686642654,-1088.3299892,0.00019178,2]
[325300521,1714686642820,-175.37357485,0.00019178,2]
[325300525,1714686642851,-2582.73995009,0.000192,2]
[325300527,1714686642865,-2032.2,0.000192,2]
[325300528,1714686642901,-4650.0,0.000192,2]
[325300529,1714686642913,-4118.64679814,0.000192,2]
[325300530,1714686642923,-16332.35070051,0.00019392,2]
[325300532,1714686642934,-1493.43285679,0.00019392,2]
[325300534,1714686642946,-598.96,0.00019392,2]
[325300538,1714686642957,-30263.1473479,0.00019392,2]
[325300541,1714686642971,-212188.76279835,0.00019392,2]
[325300544,1714686642980,-480.0,0.00019619,2]
[325300546,1714686642991,-157.62684082,0.00019742,2]
[325300549,1714686643001,-157.62684082,0.00019777,2]
[325300552,1714686643011,-180.38193662,0.0002,2]
[325300556,1714686643020,-155.0,0.0002,2]
[325300559,1714686643030,-186.17767163,0.0002,30]
[325300562,1714686643039,-276.96241821,0.0002,2]
[325300565,1714686643049,-1768.39934975,0.0002,2]
[325300567,1714686643060,-1258.92106761,0.0002,2]
[325300569,1714686643070,-626.33513578,0.0002,2]
[325300571,1714686643079,-1398.99880715,0.0002,2]
[325300572,1714686643129,-3775.10938264,0.0002,2]
[325300573,1714686643139,-156.56017012,0.00020124,2]
[325300574,1714686643148,-293.0,0.0002014,2]
[325300575,1714686643157,-47500.02946406,0.00020414,2]
[325300576,1714686643166,-19878.49,0.00020548,2]
[325300577,1714686643175,-153.03920342,0.00020643,2]
[325300578,1714686643184,-152.33231404,0.00020756,2]
[325300579,1714686643194,-155.32697764,0.00020761,2]
[325300580,1714686643204,-490.56177165,0.00020806,2]
[325300581,1714686643213,-260876.65370355,0.0002083,2]
[325300582,1714686643222,-155.0,0.000209,2]
[325300583,1714686643232,-154.7689444,0.00020906,2]
[325300584,1714686643242,-490.56177163,0.00020919,2]
[325300585,1714686643252,-155.0,0.00021,2]
[325300586,1714686643261,-490.56177163,0.00021033,2]
[325300587,1714686643270,-490.56177163,0.00021146,2]
[325300588,1714686643279,-490.56177163,0.0002126,2]
[325300589,1714686643289,-490.56177163,0.00021373,2]
[325300590,1714686643298,-490.56177163,0.00021486,2]
[325300591,1714686643307,-490.56177163,0.000216,2]
[325300592,1714686643316,-155.42,0.00021644,2]
[325300593,1714686643325,-267.32,0.00021644,2]
[325300594,1714686643336,-490.56177163,0.00021713,2]
[325300595,1714686643345,-214.15,0.00021734,2]
[325300596,1714686643356,-2987.37,0.00021792,2]
[325300597,1714686643365,-480.0,0.00021799,2]
[325300598,1714686643375,-490.56177163,0.00021827,2]
[325300599,1714686643384,-154.69574402,0.00021861,2]
[325300600,1714686643394,-5239.0,0.000219,2]
[325300601,1714686643404,-47500.02946406,0.00021912,2]
[325300602,1714686643414,-250.0,0.00021918,2]
[325300603,1714686643423,-2000.0,0.00021918,2]
[325300604,1714686643433,-625.86,0.00021918,2]
[325300605,1714686643442,-490.56177163,0.0002194,2]
[325300606,1714686643453,-490.56177163,0.00022054,2]
[325300607,1714686643462,-1659.61,0.00022142,2]
[325300608,1714686643471,-490.56177163,0.00022167,2]
[325300609,1714686643480,-260876.65370355,0.00022269,2]
[325300610,1714686643490,-490.56177163,0.0002228,2]
[325300611,1714686643499,-490.56177163,0.00022394,2]
[325300612,1714686643508,-490.56177163,0.00022507,2]
[325300613,1714686643517,-490.56177163,0.00022621,2]
[325300614,1714686643526,-490.56177163,0.00022734,2]
[325300615,1714686643535,-490.56177163,0.00022847,2]
[325300616,1714686643544,-153.9271184,0.00022929,2]
[325300617,1714686643554,-490.56177163,0.00022961,2]
[325300618,1714686643563,-157.62684082,0.00022972,2]
[325300619,1714686643573,-226.40771618,0.00022998,2]
[325300620,1714686643582,-179.49292044,0.00022998,2]
[325300621,1714686643591,-4730.70615897,0.00022998,2]
[325300622,1714686643601,-2308.72660009,0.00022999,2]
[325300623,1714686643610,-17686.94369324,0.00023,2]
[325300624,1714686643620,-490.56177163,0.00023074,2]
[325300625,1714686643629,-157.62684082,0.00023146,2]
[325300626,1714686643638,-156.56017013,0.00023161,2]
[325300627,1714686643648,-490.56177163,0.00023188,2]
[325300628,1714686643657,-696.29,0.00023244,2]
[325300629,1714686643666,-153.03920342,0.00023244,2]
[325300630,1714686643675,-170.28,0.00023255,2]
[325300631,1714686643684,-490.56177163,0.00023301,2]
[325300632,1714686643694,-155.0,0.00023329,2]
[325300633,1714686643703,-1037.89082289,0.0002333,2]
[325300634,1714686643713,-1999.89651016,0.000234,2]
[325300635,1714686643722,-47500.02946406,0.0002341,2]
[325300636,1714686643732,-490.56177163,0.00023415,2]
[325300637,1714686643742,-490.56177163,0.00023528,2]
[325300638,1714686643752,-490.56177163,0.00023641,2]
[325300639,1714686643761,-260876.65370355,0.00023707,2]
[325300640,1714686643772,-156.18,0.00023725,2]
[325300641,1714686643782,-156.18,0.00023739,2]
[325300643,1714686643792,-156.18,0.00023754,2]
[325300645,1714686643801,-490.56177163,0.00023755,2]
[325300648,1714686643812,-156.18,0.00023769,2]
[325300651,1714686643823,-156.18,0.00023784,2]
[325300654,1714686643833,-156.18,0.00023799,2]
[325300655,1714686643843,-156.18,0.00023814,2]
[325300658,1714686643852,-156.18,0.00023828,2]
[325300661,1714686643862,-156.18,0.00023843,2]
[325300663,1714686643871,-490.56177163,0.00023868,2]
[325300665,1714686643880,-150.03823304,0.0002394,2]
[325300667,1714686643890,-167.56442339,0.00023964,2]
[325300669,1714686643899,-443.481164,0.00023964,2]
[325300670,1714686643908,-2212.20569301,0.00023964,2]
[325300671,1714686643918,-293.29822192,0.00023964,2]
[325300672,1714686643927,-1041.0025071,0.00023964,2]
[325300673,1714686643936,-37393.75485043,0.00023964,2]
[325300674,1714686643946,-179.74414857,0.00023964,2]
[325300675,1714686643956,-290.47305641,0.00023964,2]
[325300676,1714686643965,-480.0,0.00023979,2]
[325300677,1714686643974,-490.56177163,0.00023982,2]
[325300678,1714686643984,-275.99273375,0.00024,2]
[325300679,1714686643994,-1134.85,0.00024,7]
[325300680,1714686644004,-431.95467805,0.00024,2]
[325300681,1714686644014,-157.62684082,0.00024023,2]
[325300682,1714686644024,-490.56177163,0.00024095,2]
[325300683,1714686644034,-490.56177163,0.00024208,2]
[325300684,1714686644043,-490.56177163,0.00024322,2]
[325300685,1714686644054,-490.56177163,0.00024435,2]
[325300686,1714686644065,-151.0,0.00024453,30]
[325300687,1714686644076,-2762.92,0.00024465,2]
[325300688,1714686644086,-625.86,0.00024658,2]
[325300689,1714686644096,-151.0,0.00024952,7]
[325300690,1714686644106,-8521.21,0.0002498,2]
[325300691,1714686644116,-1830.64873435,0.00024999,2]
[325300692,1714686644126,-2217.06939239,0.00024999,2]
[325300693,1714686644136,-155.0,0.00025,2]
[325300694,1714686644145,-924.00768852,0.00025,2]
[325300695,1714686644155,-2606.85980791,0.00025,2]
[325300696,1714686644165,-471.2169433,0.00025,2]
[325300697,1714686644175,-260876.65370355,0.00025146,2]
[325300698,1714686644184,-3107.78,0.000252,2]
[325300699,1714686644194,-154.69574402,0.00025393,2]
[325300700,1714686644204,-167.0,0.00025399,2]
[325300701,1714686644214,-151.0,0.00025461,4]
[325300702,1714686644223,-1561.613931,0.000256,2]
[325300703,1714686644233,-154.7689444,0.00025614,2]
[325300704,1714686644243,-9043.30435825,0.00025962,2]
[325300705,1714686644253,-5000.0,0.00025962,2]
[325300706,1714686644263,-151.0,0.00025981,2]
[325300707,1714686644273,-1500.0,0.000261,2]
[325300708,1714686644283,-696.29,0.00026149,2]
[325300709,1714686644293,-480.0,0.00026159,2]
[325300710,1714686644303,-863.0,0.000264,3]
[325300711,1714686644313,-150.0,0.000264,5]
[325300712,1714686644323,-174.9665169,0.000265,2]
[325300713,1714686644332,-260876.65370355,0.00026584,2]
[325300714,1714686644342,-1500.0,0.000266,2]
[325300715,1714686644351,-167.0,0.00026797,2]
[325300716,1714686644361,-150.0,0.000269,5]
[325300717,1714686644371,-170.17,0.00026979,2]
[325300718,1714686644380,-1739.53742045,0.00027,2]
[325300719,1714686644390,-155.06614418,0.00027,2]
[325300720,1714686644399,-1500.0,0.000271,2]
[325300721,1714686644409,-210.35695249,0.00027109,2]
[325300722,1714686644419,-155.0,0.0002712,2]
[325300723,1714686644428,-1037.56825574,0.0002712,2]
[325300724,1714686644438,-715.94935382,0.0002712,2]
[325300725,1714686644448,-3431.22,0.00027123,2]
[325300726,1714686644458,-739.75927914,0.00027163,10]
[325300727,1714686644467,-7592.8302323,0.000273,2]
[325300728,1714686644478,-500.0,0.00027397,2]
[325300729,1714686644488,-459.2271773,0.00027397,2]
[325300730,1714686644498,-500.0,0.00027397,2]
[325300731,1714686644508,-500.0,0.00027397,2]
[325300732,1714686644518,-500.0,0.00027397,2]
[325300733,1714686644528,-500.0,0.00027397,2]
[325300734,1714686644537,-500.0,0.00027397,2]
[325300735,1714686644547,-150.0,0.00027397,2]
[325300736,1714686644558,-155.23,0.00027397,2]
[325300737,1714686644567,-625.86,0.00027397,2]
[325300738,1714686644578,-79879.39,0.00027397,2]
[325300739,1714686644587,-15784.84,0.00027397,2]
[325300740,1714686644597,-5239.05264359,0.000274,2]
[325300741,1714686644606,-150.0,0.000274,5]
[325300742,1714686644616,-9327.0555145,0.00027447,2]
[325300743,1714686644626,-9327.05551449,0.00027447,2]
[325300744,1714686644635,-9327.05551449,0.00027447,2]
[325300745,1714686644645,-561.15247926,0.000275,2]
[325300746,1714686644654,-1500.0,0.000276,2]
[325300747,1714686644663,-275.5,0.000276,2]
[325300748,1714686644673,-1690.53,0.00027636,2]
[325300749,1714686644682,-267.32,0.00027714,2]
[325300750,1714686644692,-561.15247917,0.00027809,2]
[325300751,1714686644701,-150.0,0.000279,5]